bitfinex/quotes_SOLUSD_20240729
["timestamp","ask_amount","ask_price","bid_price","bid_amount"]
[1722295103673,5.4912,182.11,182.05,13.7321]
[1722295103876,35.63,182.16,182.05,13.7321]
[1722295103877,5.4908,182.13,182.05,13.7321]
[1722295104090,1.37338917,182.12,182.05,13.7321]
[1722295104294,21.37338917,182.12,182.05,13.7321]
[1722295104494,1.37338917,182.12,182.05,13.7321]
[1722295104677,20.0,182.11,182.1,5.4914]
[1722295107071,1.37307279,182.17,182.12,5.4908]
[1722295107270,41.1184,182.2,182.11,13.7275]
[1722295107470,1.37290474,182.19,182.13,5.4905]
[1722295108287,5.4898,182.16,182.07,13.7305]
[1722295108493,6.86331122,182.15,182.07,19.2227]
[1722295108677,26.8634364,182.14,182.08,5.4919]
[1722295108886,21.3731364,182.14,182.08,5.4919]
[1722295109090,1.3731364,182.14,182.07,13.7305]
[1722295109287,35.63,182.13,182.03,5.4933]
[1722295109489,21.54350987,182.12,182.02,13.7344]
[1722295109795,45.0,182.11,182.01,6.2868]
[1722295109985,5.4926,182.07,182.01,6.2868]
[1722295110191,21.37370051,182.06,182.01,6.2868]
[1722295110372,26.86640051,182.06,182.01,6.2868]
[1722295110571,21.37370051,182.06,182.02,5.4938]
[1722295110768,20.0,182.05,182.01,25.5159]
[1722295110995,1.37368245,182.04,182.01,25.5161]
[1722295111199,1.37368245,182.04,182.01,20.0219]
[1722295111507,21.37367841,182.06,182.03,5.4935]
[1722295111675,21.37357955,182.1,182.07,5.4921]
[1722295111875,1.37357955,182.1,182.07,13.7307]
[1722295112101,21.37321299,182.14,182.07,13.7307]
[1722295112303,35.63,182.16,182.07,13.7307]
[1722295112304,1.37321299,182.12,182.07,5.4923]
[1722295112506,1.37321299,182.12,182.08,5.4918]
[1722295112670,1.37326727,182.14,182.06,13.7315]
[1722295113006,1.37326727,182.14,182.09,19.2204]
[1722295113402,1.37326727,182.14,182.09,13.7289]
[1722295113606,1.37308009,182.19,182.09,13.7289]
[1722295113899,5.4891,182.18,182.11,5.4911]
[1722295114195,1.37292193,182.17,182.09,13.7289]
[1722295114403,1.37292193,182.17,182.12,5.4908]
[1722295114788,6.86181223,182.19,182.12,5.4908]
[1722295114982,6.86181223,182.19,182.11,5.4911]
[1722295114983,5.4891,182.18,182.11,5.4911]
[1722295115193,1.37295421,182.17,182.11,5.4911]
[1722295115481,21.37295421,182.17,182.11,5.4911]
[1722295115693,21.37295421,182.17,182.12,5.4908]
[1722295115895,25.4891,182.18,182.11,5.4911]
[1722295116093,6.86230488,182.17,182.11,5.4911]
[1722295116286,20.0,182.16,182.12,5.4908]
[1722295116789,1.37290166,182.15,182.09,13.7289]
[1722295116992,1.37290166,182.15,182.09,19.2204]
[1722295117200,1.37290166,182.15,182.09,13.7289]
[1722295117405,20.0,182.16,182.13,5.4905]
[1722295117775,21.37276344,182.19,182.14,5.4902]
[1722295118185,21.37271424,182.24,182.14,5.4902]
[1722295118382,20.0,182.18,182.08,13.7301]
[1722295118689,1.37304526,182.17,182.04,13.733]
[1722295118902,35.63,182.16,182.04,19.2262]
[1722295119090,66.37329382,182.15,182.04,19.2262]
[1722295119279,5.4915,182.1,182.04,13.733]
[1722295119482,21.373323,182.09,182.04,13.733]
[1722295119884,21.373323,182.09,182.05,5.4928]
[1722295120187,0.17,182.14,182.04,13.733]
[1722295120188,21.37329275,182.11,182.06,5.4926]
[1722295120387,1.37329275,182.11,182.06,5.4926]
[1722295120787,1.37325758,182.1,182.06,5.4926]
[1722295121308,1.37325758,182.1,182.0,19.7855]
[1722295121525,5.4925,182.07,182.0,19.7855]
[1722295121802,5.492,182.09,182.0,19.7855]
[1722295121980,21.37351056,182.08,182.0,19.7855]
[1722295122183,21.37351056,182.08,182.01,11.7807]
[1722295122398,25.4921,182.08,182.01,6.2868]
[1722295122599,20.0,182.08,182.02,5.4938]
[1722295122793,20.0,182.08,182.02,5.4936]
[1722295123282,20.0,182.08,182.03,5.4934]
[1722295123479,20.0,182.08,182.01,11.7808]
[1722295123698,21.37348215,182.1,182.01,11.7808]
[1722295123987,26.86518215,182.1,182.02,5.4938]
[1722295124695,21.37348215,182.1,182.05,5.4928]
[1722295124910,21.37348215,182.1,182.03,13.7337]
[1722295125113,26.86498215,182.1,182.04,5.493]
[1722295125307,26.86498215,182.1,182.01,6.2868]
[1722295125308,5.4921,182.08,182.01,6.2868]
[1722295125625,21.37357298,182.07,182.01,6.2868]
[1722295126108,20.0,182.07,182.01,11.7809]
[1722295126411,26.86596477,182.07,182.01,11.781]
[1722295126794,21.37356477,182.07,182.01,11.781]
[1722295127305,21.37356173,182.07,182.01,11.781]
[1722295127493,20.0,182.07,182.01,11.781]
[1722295127790,20.0,182.07,182.01,6.2868]
[1722295128200,25.4921,182.08,182.02,5.4938]
[1722295128410,20.0,182.08,182.02,5.4938]
[1722295129511,25.4922,182.08,182.01,11.7809]
[1722295129713,25.4922,182.08,182.02,5.4938]
[1722295129913,20.0,182.08,182.03,5.4935]
[1722295130216,20.0,182.08,182.02,13.7344]
[1722295130514,1.37337875,182.13,182.03,5.4933]
[1722295130694,1.3733812,182.12,182.02,13.7344]
[1722295131095,5.4908,182.13,182.05,13.7323]
[1722295131301,5.491,182.12,182.06,5.4923]
[1722295131505,5.491,182.12,182.05,19.2252]
[1722295131696,1.37325079,182.12,182.05,13.7323]
[1722295131907,5.4912,182.11,182.05,13.7323]
[1722295132413,5.4908,182.12,182.06,5.4925]
[1722295132619,1.3732526,182.15,182.07,5.4923]
[1722295132808,1.37310095,182.17,182.05,13.7323]
[1722295133316,5.49,182.15,182.05,13.7323]
[1722295133619,2.16005944,182.2,182.07,5.4923]
[1722295133620,5.4905,182.13,182.07,5.4923]
[1722295133808,5.4905,182.13,182.06,5.4926]
[1722295134404,5.4902,182.15,182.05,13.7323]
[1722295135214,30.75312787,182.18,182.01,6.2868]
[1722295135422,5.4894,182.17,182.1,5.4914]
[1722295135724,30.7529111,182.18,182.11,5.491]
[1722295135916,29.38,182.18,182.11,5.491]
[1722295136114,5.4893,182.17,182.09,5.4915]
[1722295136310,5.4893,182.17,182.1,5.4914]
[1722295136619,5.4887,182.2,182.13,5.4905]
[1722295136929,29.38,182.21,182.12,5.4908]
[1722295136930,5.4888,182.19,182.12,5.4908]
[1722295137431,29.38,182.21,182.15,5.4898]
[1722295137626,1.37248434,182.22,182.13,6.3584]
[1722295137934,29.38,182.27,182.13,6.3584]
[1722295138113,1.37224273,182.26,182.13,6.3584]
[1722295138422,5.4873,182.24,182.17,19.2125]
[1722295139414,5.4868,182.26,182.2,5.4884]
[1722295139626,1.3721677,182.25,182.17,13.7232]
[1722295139822,1.3721677,182.25,182.17,19.2123]
[1722295140120,6.8593677,182.25,182.18,5.4889]
[1722295140428,34.8665,182.27,182.2,5.4883]
[1722295140800,29.38,182.27,182.21,5.488]
[1722295141329,5.4861,182.28,182.21,5.488]
[1722295141527,1.37202763,182.29,182.2,13.721]
[1722295142200,29.38,182.3,182.24,5.487]
[1722295142621,1.3718184,182.29,182.24,5.487]
[1722295142824,30.75181821,182.3,182.25,5.4869]
[1722295142999,1.37179937,182.29,182.26,5.4865]
[1722295143201,29.38,182.3,182.23,30.3019]
[1722295143600,34.8644,182.34,182.27,5.4862]
[1722295144117,29.38,182.34,182.26,13.7165]
[1722295144321,29.38,182.34,182.29,5.4855]
[1722295144621,29.38,182.34,182.3,5.4853]
[1722295144919,29.38,182.38,182.29,13.7143]
[1722295145124,29.38,182.38,182.33,5.4845]
[1722295145420,5.4831,182.38,182.32,13.712]
[1722295145606,29.38,182.43,182.28,13.7147]
[1722295145806,29.38,182.39,182.34,5.4841]
[1722295146010,30.75109308,182.39,182.25,20.0]
[1722295146218,30.75109308,182.39,182.24,6.2276]
[1722295146219,34.8616,182.43,182.27,20.0]
[1722295146418,1.37093015,182.42,182.33,13.7112]
[1722295146599,1.37093015,182.42,182.35,5.4836]
[1722295146807,5.482,182.42,182.35,5.4839]
[1722295147005,29.38,182.43,182.36,5.4836]
[1722295147221,6.85290923,182.42,182.34,20.9078]
[1722295147405,5.4821,182.41,182.34,20.908]
[1722295147604,34.8618,182.43,182.34,15.4238]
[1722295148112,34.8618,182.43,182.36,5.4833]
[1722295148306,5.4814,182.44,182.36,13.709]
[1722295148500,2.1970763,182.49,182.36,13.709]
[1722295148501,29.38,182.46,182.36,13.709]
[1722295148720,5.4803,182.47,182.4,5.4824]
[1722295149420,5.48,182.48,182.41,5.4821]
[1722295149722,30.75053621,182.51,182.41,5.4821]
[1722295150124,34.8594,182.51,182.43,5.4812]
[1722295150327,29.38,182.51,182.43,5.4812]
[1722295150502,5.4798,182.49,182.42,13.7045]
[1722295150917,5.4801,182.48,182.42,13.7045]
[1722295151203,5.4797,182.5,182.42,19.186]
[1722295151409,25.4798,182.49,182.42,13.7045]
[1722295151930,5.4794,182.51,182.42,13.7045]
[1722295152330,6.84962958,182.5,182.42,19.1861]
[1722295152522,5.4804,182.47,182.38,13.7069]
[1722295152827,6.85024749,182.49,182.38,13.7069]
[1722295153124,5.4799,182.49,182.42,5.4818]
[1722295153331,5.4799,182.49,182.41,13.7052]
[1722295153648,5.4794,182.5,182.43,5.4815]
[1722295153807,20.0,182.5,182.44,13.7027]
[1722295154006,5.4791,182.51,182.44,19.1838]
[1722295154207,20.0,182.5,182.44,19.1838]
[1722295154431,5.4788,182.52,182.45,5.4809]
[1722295154625,5.4792,182.51,182.44,13.7027]
[1722295154829,5.4792,182.51,182.44,19.1839]
[1722295155434,2.15920628,182.54,182.47,5.4802]
[1722295155642,6.2674325,182.54,182.47,5.4802]
[1722295155819,0.7891325,182.54,182.47,13.7007]
[1722295156021,0.7891325,182.54,182.48,5.4797]
[1722295156234,0.7891325,182.54,182.49,5.4796]
[1722295156811,0.7891325,182.54,182.5,13.6984]
[1722295157325,0.7891325,182.54,182.53,5.4785]
[1722295157517,0.7891325,182.54,182.5,13.6984]
[1722295157718,0.7891325,182.54,182.53,5.4785]
[1722295158327,0.7891325,182.54,182.51,5.4789]
[1722295158504,0.7891325,182.54,182.5,13.6984]
[1722295158707,0.7891325,182.54,182.53,5.4785]
[1722295159809,0.7891325,182.54,182.53,6.57386134]
[1722295160036,5.4758,182.63,182.56,5.4775]
[1722295160245,1.36919136,182.62,182.51,13.6974]
[1722295160535,5.4774,182.57,182.51,13.6974]
[1722295160907,5.477,182.58,182.51,19.1765]
[1722295161115,5.4767,182.6,182.51,13.6974]
[1722295161345,25.4767,182.59,182.51,13.6974]
[1722295161639,21.3694077,182.59,182.51,13.6974]
[1722295161812,21.3694077,182.59,182.52,5.4788]
[1722295162127,21.3694077,182.59,182.47,13.7003]
[1722295162313,20.0,182.58,182.47,13.7003]
[1722295162515,5.4777,182.56,182.49,5.4795]
[1722295162829,21.3697623,182.55,182.5,5.4792]
[1722295163220,21.3697623,182.55,182.47,13.7003]
[1722295163417,5.4789,182.52,182.46,6.5184]
[1722295163615,1.37011063,182.51,182.46,6.5184]
[1722295163810,1.37011063,182.51,182.43,13.7032]
[1722295163811,1.37011063,182.51,182.43,19.1844]
[1722295164007,1.37011063,182.51,182.44,5.4812]
[1722295164209,20.0,182.52,182.46,5.4806]
[1722295164412,1.3701972,182.51,182.43,13.7032]
[1722295164607,1.3701972,182.51,182.46,5.4806]
[1722295164832,1.37019763,182.52,182.46,13.7012]
[1722295165031,1.37019763,182.5,182.48,5.4799]
[1722295165225,1.37014806,182.52,182.47,5.4801]
[1722295165435,1.37014806,182.52,182.46,13.7012]
[1722295165436,1.37011518,182.51,182.46,13.7012]
[1722295165821,1.37011518,182.51,182.47,5.4803]
[1722295166024,20.0,182.52,182.49,5.4797]
[1722295166217,20.0,182.57,182.49,13.6992]
[1722295166540,1.36988979,182.56,182.52,5.4785]
[1722295166746,1.36988979,182.56,182.49,13.6992]
[1722295166925,1.36988979,182.56,182.52,5.4788]
[1722295167123,20.0,182.58,182.52,5.4788]
[1722295167124,21.36976429,182.58,182.53,5.4784]
[1722295167343,5.4761,182.61,182.54,5.4781]
[1722295167547,6.84541121,182.63,182.56,5.4776]
[1722295167722,1.36971121,182.63,182.57,5.4773]
[1722295167922,1.36946411,182.63,182.58,13.6923]
[1722295168133,1.36927713,182.68,182.58,13.6923]
[1722295168436,1.36927713,182.67,182.58,13.6923]
[1722295168640,1.36927713,182.67,182.6,5.4762]
[1722295168944,1.36927713,182.67,182.59,5.4766]
[1722295169241,1.36925566,182.68,182.59,5.4766]
[1722295169443,1.36925261,182.67,182.59,5.4766]
[1722295169647,5.4749,182.65,182.59,5.4766]
[1722295169843,1.36921726,182.68,182.6,5.4763]
[1722295170146,5.4746,182.66,182.59,5.4767]
[1722295170344,1.36914988,182.65,182.59,5.4767]
[1722295170537,5.4742,182.68,182.6,5.4764]
[1722295170943,5.4742,182.68,182.61,5.4759]
[1722295171128,5.4742,182.68,182.62,5.4758]
[1722295171447,5.4737,182.69,182.63,5.4755]
[1722295171745,5.4734,182.7,182.63,5.4755]
[1722295171949,1.36893712,182.71,182.64,5.4751]
[1722295172127,6.84203712,182.71,182.64,5.4751]
[1722295172325,0.7891325,182.72,182.65,5.4747]
[1722295173137,6.8420424,182.71,182.64,13.6877]
[1722295173337,5.4731,182.71,182.65,5.4749]
[1722295173540,5.4731,182.71,182.64,13.6877]
[1722295173738,6.2621325,182.72,182.64,19.1626]
[1722295173946,6.84196205,182.71,182.64,19.1626]
[1722295174141,1.36866205,182.71,182.64,13.6877]
[1722295174350,2.15775408,182.72,182.64,13.6877]
[1722295174548,7.63065408,182.72,182.64,19.1626]
[1722295174747,7.63065408,182.72,182.63,22.202]
[1722295174748,2.15775408,182.72,182.63,22.202]
[1722295175253,5.4744,182.67,182.63,22.202]
[1722295175465,2.15775408,182.72,182.6,13.6907]
[1722295175466,6.84350174,182.66,182.6,13.6907]
[1722295175637,5.4742,182.68,182.6,19.167]
[1722295175831,6.2621325,182.72,182.63,13.6885]
[1722295176052,21.36879206,182.71,182.63,13.6885]
[1722295176256,20.0,182.71,182.65,5.4748]
[1722295176453,20.0,182.71,182.66,5.4746]
[1722295176752,0.7891325,182.72,182.68,5.474]
[1722295177355,0.7891325,182.72,182.66,19.1603]
[1722295177544,2.15774288,182.72,182.66,19.1603]
[1722295178047,2.15774288,182.72,182.67,5.4743]
[1722295178232,0.7891325,182.72,182.68,5.4738]
[1722295179455,0.7891325,182.72,182.69,5.4737]
[1722295179658,1.3319,182.7,182.51,16.1175]
[1722295179867,5.4771,182.58,182.51,16.1175]
[1722295180048,1.36972786,182.57,182.51,16.1175]
[1722295180245,5.48,182.49,182.3,22.202]
[1722295180556,1.37052574,182.48,182.42,5.4817]
[1722295180729,20.0,182.5,182.42,13.7046]
[1722295180932,5.4802,182.48,182.4,5.4822]
[1722295181329,65.0,182.47,182.41,5.482]
[1722295181535,1.37055669,182.46,182.42,5.4817]
[1722295181840,1.3705273,182.46,182.43,5.4813]
[1722295182032,21.37053007,182.5,182.38,27.4149]
[1722295182240,31.5007,182.57,182.47,13.7008]
[1722295182241,20.0,182.49,182.47,13.7008]
[1722295182462,1.37024567,182.52,182.49,5.4797]
[1722295183041,1.37007377,182.55,182.49,5.4797]
[1722295183358,1.37007377,182.55,182.47,13.7008]
[1722295183359,1.54007377,182.54,182.47,19.181]
[1722295183567,21.54007377,182.54,182.47,19.181]
[1722295183867,45.0,182.53,182.47,19.181]
[1722295184040,1.5402111,182.52,182.47,19.181]
[1722295184239,1.3702111,182.51,182.47,13.7008]
[1722295184449,0.17,182.5,182.47,13.7008]
[1722295184648,1.54021757,182.5,182.47,19.1811]
[1722295185066,1.37021757,182.5,182.48,5.48]
[1722295185359,1.37013351,182.52,182.49,5.4796]
[1722295185861,1.37011252,182.51,182.49,5.4796]
[1722295186250,1.37011676,182.52,182.49,5.4796]
[1722295186446,1.37011676,182.52,182.5,5.4794]
[1722295186846,46.54008674,182.53,182.47,13.7008]
[1722295187358,46.54008674,182.53,182.5,5.4794]
[1722295187545,46.54008674,182.53,182.51,5.479]
[1722295187742,1.36999767,182.6,182.55,13.6942]
[1722295187939,1.36969781,182.63,182.55,13.6942]
[1722295188140,5.4758,182.62,182.55,19.1718]
[1722295188345,1.36965639,182.61,182.55,19.1718]
[1722295188570,1.36965515,182.6,182.55,13.6942]
[1722295188744,1.36952157,182.66,182.55,13.6942]
[1722295189078,1.36952157,182.66,182.59,5.4767]
[1722295189669,1.36952157,182.66,182.61,13.6901]
[1722295189879,1.36910655,182.7,182.64,5.4751]
[1722295190441,1.36910655,182.7,182.64,13.6876]
[1722295190641,2.15805862,182.72,182.66,5.4745]
[1722295191343,2.15805862,182.72,182.67,5.4743]
[1722295191978,2.15805862,182.72,182.65,5.4747]
[1722295192350,7.63095862,182.72,182.66,5.4746]
[1722295192551,2.15805862,182.72,182.66,5.4746]
[1722295192754,2.15805862,182.72,182.67,5.4743]
[1722295192968,0.17,182.71,182.67,5.4743]
[1722295193262,0.17,182.71,182.66,5.4746]
[1722295195701,0.17,182.71,182.69,5.4737]
[1722295196054,45.7891325,182.72,182.7,5.4734]
[1722295196055,0.7891325,182.72,182.7,5.4734]
[1722295196767,0.7891325,182.72,182.71,5.4731]
[1722295200868,0.7891325,182.72,182.7,13.6834]
[1722295201061,5.4735,182.7,182.64,5.4751]
[1722295201260,0.17,182.71,182.65,5.4747]
[1722295201261,1.36897318,182.69,182.65,5.4747]
[1722295201475,5.474,182.68,182.61,5.4759]
[1722295201656,46.53910318,182.67,182.61,5.4761]
[1722295201852,46.53910318,182.67,182.6,13.6905]
[1722295201853,5.4746,182.66,182.6,13.6905]
[1722295202067,46.53910318,182.67,182.56,35.6194]
[1722295202068,1.36917649,182.65,182.56,35.6194]
[1722295202270,5.4764,182.6,182.54,5.4781]
[1722295202479,1.36959171,182.59,182.51,6.5931]
[1722295202677,1.36957987,182.63,182.6,5.4763]
[1722295202884,0.17,182.64,182.6,5.4763]
[1722295203200,1.36923275,182.67,182.64,13.688]
[1722295203349,1.36923314,182.7,182.66,5.4745]
[1722295203850,2.15793239,182.72,182.67,13.6856]
[1722295204072,2.15793239,182.72,182.62,15.3536]
[1722295204073,2.15793239,182.72,182.7,19.1569]
[1722295204358,2.15793239,182.72,182.71,5.4731]
[1722295204359,0.7891325,182.72,182.71,5.4731]
[1722295211079,0.7891325,182.72,182.7,19.1569]
[1722295211284,0.7891325,182.72,182.7,13.6835]
[1722295211588,0.7891325,182.72,182.7,19.1569]
[1722295212175,0.7891325,182.72,182.71,5.4731]
[1722295215008,1.3319,182.87,182.72,20.0]
[1722295215009,1.36802426,182.85,182.72,20.0]
[1722295215198,1.36802426,182.85,182.73,6.1573]
[1722295215376,1.36802426,182.85,182.8,19.1465]
[1722295215576,1.36802426,182.85,182.81,5.4701]
[1722295215783,5.4685,182.87,182.83,5.4693]
[1722295215784,1.36766325,182.87,182.83,5.4693]
[1722295215978,6.8353341,182.89,182.82,5.4698]
[1722295216291,2.15676427,182.9,182.84,5.4689]
[1722295216497,2.15676427,182.9,182.83,13.6738]
[1722295216498,0.7891325,182.9,182.85,5.4688]
[1722295216668,0.7891325,182.9,182.86,5.4686]
[1722295217174,0.7891325,182.9,182.85,5.4689]
[1722295217378,0.7891325,182.9,182.83,13.6738]
[1722295217593,1.36726141,182.89,182.86,13.6713]
[1722295217794,0.7891325,182.9,182.86,13.6713]
[1722295218300,0.7891325,182.9,182.89,5.4677]
[1722295218604,0.7891325,182.9,182.82,13.6739]
[1722295218771,0.7891325,182.9,182.84,5.4691]
[1722295219166,6.2565325,182.9,182.84,5.4691]
[1722295219402,5.4684,182.87,182.82,13.6739]
[1722295219702,1.36749987,182.86,182.82,19.1437]
[1722295220000,1.36749987,182.85,182.82,19.1437]
[1722295220376,0.17,182.87,182.82,19.1437]
[1722295220377,1.53753706,182.87,182.82,19.1437]
[1722295220695,1.53753706,182.87,182.83,5.4695]
[1722295220999,1.53753706,182.87,182.73,6.1573]
[1722295221000,1.36751015,182.89,182.85,13.6721]
[1722295221169,2.15639425,182.9,182.85,13.6721]
[1722295221375,1.36725504,182.89,182.87,5.4683]
[1722295221607,0.7891325,182.9,182.88,5.4679]
[1722295221902,0.7891325,182.9,182.88,13.6694]
[1722295222199,0.7891325,182.9,182.89,5.4677]
[1722295226904,0.7891325,182.9,182.89,25.4677]
[1722295230201,1.36663324,183.02,182.96,5.4656]
[1722295230509,5.6341,183.01,182.94,19.1312]
[1722295230681,1.36650616,183.0,182.94,19.1312]
[1722295230879,0.17,182.99,182.92,5.4666]
[1722295231088,1.53664843,182.99,182.92,5.4666]
[1722295231286,7.00144843,182.99,182.93,5.4664]
[1722295231492,7.00134843,182.99,182.92,5.4668]
[1722295231694,7.00134843,182.99,182.9,13.6684]
[1722295231873,1.53664843,182.99,182.96,5.4656]
[1722295232079,0.17,182.99,182.96,5.4656]
[1722295232395,0.17,182.99,182.94,5.4662]
[1722295232594,5.6347,182.99,182.93,13.6662]
[1722295232792,1.36671601,182.98,182.93,13.6662]
[1722295232992,0.17,182.97,182.93,13.6662]
[1722295233305,5.4641,183.02,182.95,5.4656]
[1722295233510,0.17,183.01,182.95,5.4656]
[1722295233707,0.17,183.01,182.96,5.4656]
[1722295234016,0.17,183.01,182.97,5.4652]
[1722295234311,0.17,183.02,182.97,5.4652]
[1722295234690,1.53644723,183.02,182.97,5.4652]
[1722295234892,1.53644723,183.02,182.98,5.465]
[1722295236510,1.53644723,183.02,182.99,5.4646]
[1722295236713,0.17,183.02,182.99,5.4646]
[1722295236920,1.36637988,183.02,182.99,5.4646]
[1722295237114,0.17,183.01,182.99,5.4646]
[1722295237294,0.17,183.01,182.96,13.6641]
[1722295237295,0.17,183.01,182.97,5.4651]
[1722295237914,0.17,183.01,182.93,13.6664]
[1722295238122,5.6343,183.01,182.95,5.4658]
[1722295238428,1.36657702,183.0,182.95,5.4658]
[1722295238609,0.17,182.99,182.95,5.4658]
[1722295238796,0.17,182.99,182.95,13.6641]
[1722295239006,0.17,182.99,182.98,5.465]
[1722295239896,1.36648497,183.03,182.99,5.4646]
[1722295240095,1.53635643,183.02,182.98,13.6626]
[1722295240313,1.36634622,183.01,182.98,19.1275]
[1722295240513,0.17,183.0,182.98,19.1275]
[1722295240898,0.17,183.0,182.94,13.6649]
[1722295241107,1.53663093,183.0,182.94,13.6649]
[1722295241305,1.53663093,183.0,182.85,26.4372]
[1722295241514,1.53663093,183.0,182.85,6.4372]
[1722295241712,29.38,182.98,182.87,13.6707]
[1722295242009,5.4663,182.94,182.87,13.6707]
[1722295242201,1.53712416,182.97,182.85,6.4372]
[1722295242202,0.17,182.93,182.92,5.4668]
[1722295242893,1.36684336,182.98,182.94,5.4661]
[1722295243122,17.21264701,183.05,182.85,6.4372]
[1722295243414,1.36704575,183.04,182.92,5.4668]
[1722295243709,1.36704575,183.04,182.9,13.668]
[1722295243911,5.4648,182.99,182.92,5.4665]
[1722295244214,1.36688112,182.98,182.85,6.4372]
[1722295244411,1.36688112,182.98,182.97,5.4653]
[1722295244609,6.82971834,183.05,182.98,5.4649]
[1722295244801,1.36650763,183.04,182.98,5.4649]
[1722295245404,6.82990763,183.04,182.98,5.4649]
[1722295245587,1.36650763,183.04,182.99,5.4646]
[1722295245793,1.36650763,183.04,182.99,13.6619]
[1722295245993,1.36632816,183.03,183.01,5.4641]
[1722295246298,1.36627173,183.06,183.01,5.4641]
[1722295246808,1.36627173,183.06,182.99,13.6619]
[1722295246809,1.36627173,183.06,183.02,5.4638]
[1722295246993,1.3319,183.07,183.03,5.4635]
[1722295246994,1.36622471,183.05,183.03,5.4635]
[1722295247494,1.36617387,183.08,183.05,5.4628]
[1722295247692,2.15528822,183.09,183.05,5.4628]
[1722295247894,2.15528822,183.09,183.05,13.6574]
[1722295249322,0.7891325,183.09,183.05,19.1202]
[1722295250512,0.17,183.08,183.01,13.6597]
[1722295250727,0.17,183.08,183.04,5.4632]
[1722295251294,0.7891325,183.09,183.04,13.658]
[1722295251494,0.7891325,183.09,182.99,6.2566]
[1722295251907,0.7891325,183.09,183.08,5.462]
[1722295252421,0.7891325,183.09,183.07,13.6553]
[1722295252727,0.7891325,183.09,183.07,19.1176]
[1722295253022,0.7891325,183.09,183.07,13.6553]
[1722295253390,0.17,183.08,183.07,13.6553]
[1722295253811,0.17,183.08,183.07,5.4623]
[1722295253995,0.17,183.08,182.99,6.2566]
[1722295254203,1.36590261,183.07,182.99,6.2566]
[1722295254419,0.17,183.06,183.05,5.4629]
[1722295254728,0.17,183.06,183.05,19.1203]
[1722295255594,0.17,183.06,183.04,5.4631]
[1722295255791,1.53593399,183.06,183.02,5.4636]
[1722295256021,1.53593399,183.06,182.97,13.6628]
[1722295256223,5.4632,183.04,182.98,5.465]
[1722295256421,1.53636639,183.03,182.99,5.4647]
[1722295256593,1.53636639,183.03,183.0,13.6609]
[1722295256796,0.17,183.03,183.02,5.4638]
[1722295258121,1.36608723,183.08,183.07,5.4623]
[1722295258304,0.7891325,183.09,183.07,5.4623]
[1722295258505,0.7891325,183.09,183.08,5.462]
[1722295260224,0.7891325,183.09,183.04,5.4632]
[1722295260399,0.7891325,183.09,183.02,13.6591]
[1722295260400,1.53596253,183.08,183.02,13.6591]
[1722295260602,1.36595044,183.07,183.02,13.6591]
[1722295260822,0.17,183.06,183.04,5.4632]
[1722295261027,1.53599772,183.06,183.02,13.6591]
[1722295261324,1.53599772,183.06,182.93,6.0858]
[1722295261524,1.53599772,183.06,183.01,5.4641]
[1722295261918,1.53599772,183.06,183.03,5.4635]
[1722295262114,0.17,183.06,183.03,5.4635]
[1722295262422,1.36607819,183.06,183.04,13.6578]
[1722295262724,0.7891325,183.09,183.08,5.462]
[1722295265133,257.9,183.18,183.16,5.4594]
[1722295265435,5.4573,183.25,183.18,5.4589]
[1722295265622,1.36495612,183.24,183.19,5.4588]
[1722295266529,1.3648621,183.25,183.19,5.4588]
[1722295266722,1.3648621,183.25,183.2,5.4584]
[1722295267241,1.3648621,183.25,183.18,13.6472]
[1722295267415,6.8218621,183.25,183.19,5.4586]
[1722295267744,1.36485555,183.26,183.19,5.4587]
[1722295268032,5.4571,183.25,183.18,5.4591]
[1722295268333,5.4571,183.25,183.17,13.6479]